fUST/lending_fUST_20250128
["ID","MTS","AMOUNT","RATE_DAILY","PERIOD"]
[350653832,1738032643744,-501.50141218,0.00019444,2]
[350653833,1738032643754,-500.0,0.00019444,2]
[350653834,1738032643763,-254.961,0.00019445,2]
[350653835,1738032643772,-159.30439009,0.00019445,2]
[350653836,1738032643782,-500.0,0.0001958,2]
[350653837,1738032643791,-500.0,0.0001958,2]
[350653838,1738032643800,-500.0,0.0001958,2]
[350653839,1738032643810,-500.0,0.0001958,2]
[350653840,1738032643819,-500.0,0.0001958,2]
[350653841,1738032643828,-500.0,0.0001958,2]
[350653842,1738032643837,-500.0,0.0001958,2]
[350653843,1738032643847,-500.0,0.0001958,2]
[350653844,1738032643856,-500.0,0.0001958,2]
[350653845,1738032643865,-500.0,0.0001958,2]
[350653846,1738032643874,-550.59,0.0001958,2]
[350653847,1738032643883,-500.0,0.0001958,2]
[350653848,1738032643893,-500.0,0.0001958,2]
[350653849,1738032643902,-500.0,0.0001958,2]
[350653850,1738032643911,-500.0,0.0001958,2]
[350653851,1738032643921,-500.0,0.0001958,2]
[350653852,1738032643930,-299.26899633,0.0001958,2]
[350653853,1738032643939,-2539.01,0.0001958,2]
[350653854,1738032643948,-500.0,0.0001958,2]
[350653855,1738032643957,-500.0,0.0001958,2]
[350653856,1738032643966,-500.0,0.0001958,2]
[350653857,1738032643976,-787.39,0.0001958,2]
[350653858,1738032643984,-500.0,0.0001958,2]
[350653859,1738032643994,-500.0,0.0001958,2]
[350653860,1738032644003,-500.0,0.0001958,2]
[350653861,1738032644012,-500.0,0.0001958,2]
[350653862,1738032644021,-500.0,0.0001958,2]
[350653863,1738032644030,-348.19832871,0.00019581,2]
[350653864,1738032644039,-500.0,0.00019581,2]
[350653865,1738032644048,-500.0,0.00019581,2]
[350653866,1738032644057,-271.53730881,0.00019581,2]
[350653867,1738032644067,-515.79713349,0.00019581,2]
[350653868,1738032644076,-517.23361222,0.00019581,2]
[350653869,1738032644085,-500.0,0.00019581,2]
[350653870,1738032644095,-500.0,0.00019581,2]
[350653871,1738032644104,-500.0,0.00019581,2]
[350653872,1738032644116,-500.0,0.00019717,2]
[350653873,1738032644126,-500.0,0.00019717,2]
[350653874,1738032644136,-500.0,0.00019717,2]
[350653875,1738032644147,-500.0,0.00019717,2]
[350653876,1738032644162,-500.0,0.00019717,2]
[350653877,1738032644175,-500.0,0.00019717,2]
[350653878,1738032644188,-500.0,0.00019717,2]
[350653879,1738032644199,-500.0,0.00019717,2]
[350653880,1738032644211,-500.0,0.00019717,2]
[350653881,1738032644223,-550.59,0.00019717,2]
[350653882,1738032644234,-500.0,0.00019717,2]
[350653883,1738032644244,-500.0,0.00019717,2]
[350653884,1738032644254,-500.0,0.00019717,2]
[350653885,1738032644264,-500.0,0.00019717,2]
[350653886,1738032644276,-500.0,0.00019717,2]
[350653887,1738032644286,-2539.01,0.00019717,2]
[350653888,1738032644297,-500.0,0.00019717,2]
[350653889,1738032644307,-500.0,0.00019717,2]
[350653890,1738032644318,-500.0,0.00019717,2]
[350653891,1738032644328,-787.39,0.00019717,2]
[350653892,1738032644339,-500.0,0.00019717,2]
[350653893,1738032644350,-500.0,0.00019717,2]
[350653894,1738032644361,-500.0,0.00019717,2]
[350653895,1738032644371,-500.0,0.00019717,2]
[350653896,1738032644382,-500.0,0.00019717,2]
[350653897,1738032644394,-500.0,0.00019718,2]
[350653898,1738032644405,-500.0,0.00019718,2]
[350653899,1738032644415,-500.0,0.00019718,2]
[350653900,1738032644426,-69.01955432,0.00019718,2]
[350653901,1738032644522,-430.98044568,0.00019718,2]
[350653902,1738032644532,-226.59230705,0.00019718,2]
[350653910,1738032646382,-500.0,0.00019443,2]
[350653911,1738032646394,-500.0,0.0001958,2]
[350653912,1738032646407,-193.58530495,0.00019581,2]
[350653913,1738032646418,-306.25831206,0.00019717,2]
[350653914,1738032646430,-273.40769295,0.00019718,2]
[350653915,1738032646442,-479.13,0.00019854,2]
[350653916,1738032646454,-202.65689434,0.00019854,2]
[350653917,1738032646465,-500.0,0.00019854,2]
[350653918,1738032646476,-329.13005682,0.00019854,2]
[350653919,1738032646489,-500.0,0.00019854,2]
[350653920,1738032646503,-500.0,0.00019854,2]
[350653921,1738032646513,-500.0,0.00019854,2]
[350653922,1738032646523,-550.59,0.00019854,2]
[350653923,1738032646532,-500.0,0.00019854,2]
[350653924,1738032646542,-596.34,0.00019854,2]
[350653925,1738032646552,-389.05849208,0.00019854,2]
[350653926,1738032646562,-2539.01,0.00019854,2]
[350653927,1738032646573,-500.0,0.00019854,2]
[350653928,1738032646583,-279.77798125,0.00019854,2]
[350653929,1738032646595,-500.0,0.00019854,2]
[350653930,1738032646606,-787.39,0.00019854,2]
[350653931,1738032646618,-500.0,0.00019854,2]
[350653932,1738032646630,-500.0,0.00019854,2]
[350653933,1738032646641,-546.98,0.00019854,2]
[350653934,1738032646652,-500.0,0.00019855,2]
[350653935,1738032646662,-500.0,0.00019855,2]
[350653936,1738032646672,-500.0,0.00019855,2]
[350653937,1738032646682,-500.0,0.00019855,2]
[350653938,1738032646693,-500.0,0.00019855,2]
[350653939,1738032646703,-166.68622851,0.0001999,2]
[350653940,1738032646714,-500.0,0.00019991,2]
[350653941,1738032646724,-504.5,0.00019991,2]
[350653942,1738032646736,-500.0,0.00019991,2]
[350653943,1738032646752,-500.0,0.00019991,2]
[350653944,1738032646764,-550.59,0.00019991,2]
[350653945,1738032646775,-500.0,0.00019991,2]
[350653946,1738032646785,-2539.01,0.00019991,2]
[350653947,1738032646796,-500.0,0.00019991,2]
[350653948,1738032646806,-500.0,0.00019991,2]
[350653949,1738032646817,-787.39,0.00019991,2]
[350653950,1738032646827,-500.0,0.00019991,2]
[350653951,1738032646837,-189.28,0.00019991,2]
[350653952,1738032646848,-500.0,0.00019992,2]
[350653953,1738032646859,-500.0,0.00019992,2]
[350653954,1738032646870,-500.0,0.00019992,2]
[350653955,1738032646882,-500.0,0.00019992,2]
[350653956,1738032646893,-500.0,0.00019992,2]
[350653957,1738032646904,-191.71173116,0.00020028,2]
[350653958,1738032646918,-501.92893253,0.00020096,2]
[350653959,1738032646928,-504.80412852,0.00020096,2]
[350653960,1738032646939,-502.83210972,0.00020096,2]
[350653961,1738032646951,-577.64508933,0.00020126,2]
[350653962,1738032646962,-500.94201585,0.00020126,2]
[350653963,1738032646973,-501.63764556,0.00020126,2]
[350653964,1738032646984,-501.08791302,0.00020126,2]
[350653965,1738032647001,-502.64143616,0.00020126,2]
[350653966,1738032647013,-500.0,0.00020128,2]
[350653967,1738032647024,-500.0,0.00020128,2]
[350653968,1738032647035,-475.0,0.00020128,2]
[350653969,1738032647046,-550.59,0.00020128,2]
[350653970,1738032647058,-500.0,0.00020128,2]
[350653971,1738032647070,-2539.01,0.00020128,2]
[350653972,1738032647081,-500.0,0.00020128,2]
[350653973,1738032647092,-500.0,0.00020128,2]
[350653974,1738032647103,-787.39,0.00020128,2]
[350653975,1738032647114,-500.0,0.00020128,2]
[350653976,1738032647127,-500.0,0.00020129,2]
[350653977,1738032647138,-497.34798337,0.00020129,2]
[350653978,1738032647148,-500.0,0.00020129,2]
[350653979,1738032647164,-500.0,0.00020129,2]
[350653980,1738032647179,-500.0,0.00020129,2]
[350653981,1738032647189,-6003.03160791,0.00020205,2]
[350653982,1738032647211,-156.20957892,0.00020232,2]
[350653983,1738032647221,-501.01165561,0.00020232,2]
[350653984,1738032647231,-162.53553556,0.00020235,2]
[350653985,1738032647242,-502.03646185,0.00020235,2]
[350653986,1738032647380,-198.12,0.00020265,2]
[350653987,1738032647391,-550.59,0.00020265,2]
[350653988,1738032647400,-500.0,0.00020265,2]
[350653989,1738032647409,-2539.01,0.00020265,2]
[350653990,1738032647418,-196.75,0.00020265,2]
[350653991,1738032647426,-500.0,0.00020265,2]
[350653992,1738032647435,-787.39,0.00020265,2]
[350653993,1738032647445,-500.0,0.00020265,2]
[350653994,1738032647454,-500.0,0.00020266,2]
[350653995,1738032647463,-500.0,0.00020266,2]
[350653996,1738032647472,-500.0,0.00020266,2]
[350653997,1738032647481,-506.9936416,0.00020288,2]
[350653998,1738032647490,-501.82369495,0.00020296,2]
[350653999,1738032647506,-512.67228118,0.00020331,2]
[350654000,1738032647516,-513.32597637,0.00020331,2]
[350654001,1738032647525,-508.00037369,0.00020331,2]
[350654002,1738032647534,-519.0966617,0.00020331,2]
[350654003,1738032647543,-530.65260412,0.00020331,2]
[350654004,1738032647552,-506.21234705,0.00020331,2]
[350654005,1738032647562,-509.06159686,0.00020331,2]
[350654006,1738032647572,-500.0,0.00020331,2]
[350654007,1738032647581,-227.84822879,0.00020331,2]
[350654008,1738032647591,-506.15034994,0.00020362,2]
[350654009,1738032647600,-550.59,0.00020402,2]
[350654010,1738032647609,-627.78,0.00020402,2]
[350654011,1738032647618,-2539.01,0.00020402,2]
[350654012,1738032647628,-622.18,0.00020402,2]
[350654013,1738032647637,-787.39,0.00020402,2]
[350654014,1738032647646,-500.0,0.00020402,2]
[350654015,1738032647655,-484.08510567,0.00020403,2]
[350654016,1738032647665,-500.0,0.00020403,2]
[350654017,1738032647674,-500.0,0.00020468,2]
[350654018,1738032647683,-550.59,0.00020539,2]
[350654019,1738032647692,-2539.01,0.00020539,2]
[350654020,1738032647701,-787.39,0.00020539,2]
[350654021,1738032647711,-500.0,0.00020539,2]
[350654022,1738032647720,-500.0,0.0002054,2]
[350654023,1738032647729,-499.0,0.00020547,2]
[350654024,1738032647738,-500.0,0.00020605,2]
[350654025,1738032647753,-550.59,0.00020676,2]
[350654026,1738032647762,-2539.01,0.00020676,2]
[350654027,1738032647771,-787.39,0.00020676,2]
[350654028,1738032647780,-500.0,0.00020676,2]
[350654029,1738032647789,-288.854656,0.00020676,2]
[350654030,1738032647800,-175.846006,0.00020676,2]
[350654031,1738032647809,-153.317627,0.00020676,2]
[350654032,1738032647818,-151.0,0.00020676,2]
[350654033,1738032647827,-155.630873,0.00020677,2]
[350654034,1738032647836,-151.0,0.00020677,2]
[350654035,1738032647847,-151.0,0.00020677,2]
[350654036,1738032647855,-151.0,0.00020677,2]
[350654037,1738032647865,-230.508174,0.00020677,2]
[350654038,1738032647874,-186.08119,0.00020677,2]
[350654039,1738032647883,-185.59134817,0.00020677,2]
[350654040,1738032647895,-0.48984183,0.00020677,2]
[350654041,1738032647905,-151.0,0.00020677,2]
[350654042,1738032647914,-151.0,0.00020677,2]
[350654043,1738032647923,-162.00688307,0.00020677,2]
[350654044,1738032647933,-151.0,0.00020677,2]
[350654045,1738032647942,-166.931956,0.00020677,2]
[350654046,1738032647952,-151.0,0.00020677,2]
[350654047,1738032647961,-151.0,0.00020677,2]
[350654048,1738032647971,-500.0,0.00020742,2]
[350654049,1738032647980,-151.0,0.00020742,2]
[350654050,1738032647990,-151.0,0.00020742,2]
[350654051,1738032648006,-151.0,0.00020742,2]
[350654052,1738032648015,-158.291139,0.00020807,2]
[350654053,1738032648024,-550.59,0.00020813,2]
[350654054,1738032648033,-2539.01,0.00020813,2]
[350654055,1738032648042,-787.39,0.00020813,2]
[350654056,1738032648051,-500.0,0.00020813,2]
[350654057,1738032648061,-151.0,0.00020814,2]
[350654058,1738032648070,-151.0,0.00020814,2]
[350654059,1738032648080,-152.286406,0.00020815,2]
[350654060,1738032648089,-151.0,0.00020815,2]
[350654061,1738032648099,-358.8070245,0.00020849,2]
[350654062,1738032648108,-354.2307862,0.00020849,2]
[350654063,1738032648119,-354.2307862,0.00020849,2]
[350654064,1738032648128,-354.2307862,0.00020849,2]
[350654065,1738032648138,-500.0,0.00020879,2]
[350654066,1738032648148,-550.59,0.0002095,2]
[350654067,1738032648157,-1500.93232492,0.0002095,2]
[350654115,1738033030855,178.06,0.0002072,120]
[350654116,1738033201135,190.617228,0.00013699,2]
[350654117,1738033544145,-165.14340579,0.00016315,2]
[350654118,1738033626224,-115.48039836,0.00016315,2]
[350654119,1738033626245,-838.87078202,0.00016415,2]
[350654121,1738033635098,-150.24525927,0.000164,2]
[350654122,1738033635120,-453.69041798,0.00016415,2]
[350654123,1738033635142,-212.88582329,0.00016415,2]
[350654124,1738033635163,-153.0,0.00016441,2]
[350654125,1738033635184,-153.0,0.00016441,2]
[350654126,1738033635205,-153.0,0.00016441,2]
[350654127,1738033635226,-153.0,0.00016441,2]
[350654128,1738033635245,-153.0,0.00016441,2]
[350654129,1738033635265,-153.0,0.00016446,2]
[350654130,1738033635286,-153.0,0.00016446,2]
[350654131,1738033635306,-300.0,0.0001722,2]
[350654132,1738033635326,-272.89934042,0.00017221,2]
[350654133,1738033639140,-8946.46582356,0.00017221,2]
[350654134,1738033646084,-540.3224408,0.00017221,2]
[350654136,1738033667850,162.681545,0.00013973,2]
[350654199,1738033832772,-279.83021472,0.00017221,2]
[350654206,1738033832827,-5311.5707249,0.00017221,2]
[350654208,1738033832836,-500.0,0.00018451,2]
[350654210,1738033832846,-501.84088076,0.00018451,2]
[350654212,1738033832855,-505.35055994,0.00018451,2]
[350654214,1738033832864,-500.0,0.00018451,2]
[350654216,1738033832874,-121.81748333,0.00018451,2]
[350654219,1738033832890,-378.18251667,0.00018451,2]
[350654221,1738033832900,-505.42284264,0.00018451,2]
[350654223,1738033832908,-500.0,0.00018451,2]
[350654225,1738033832917,-500.0,0.00018451,2]
[350654227,1738033832927,-500.0,0.00018451,2]
[350654229,1738033832936,-500.0,0.00018451,2]
[350654242,1738033833053,-512.26220794,0.00018451,2]
[350654245,1738033833068,-500.0,0.00018451,2]
[350654247,1738033833078,-505.05104049,0.00018451,2]
[350654249,1738033833087,-517.40853131,0.00018451,2]
[350654251,1738033833096,-505.53439986,0.00018451,2]
[350654253,1738033833105,-500.0,0.00018451,2]
[350654255,1738033833114,-500.0,0.00018451,2]
[350654256,1738033833124,-500.0,0.00018451,2]
[350654258,1738033833134,-505.64026814,0.00018451,2]
[350654260,1738033833144,-510.85372419,0.00018451,2]
[350654263,1738033833153,-500.0,0.00018451,2]
[350654265,1738033833163,-514.10166219,0.00018451,2]
[350654267,1738033833172,-506.26236277,0.00018451,2]
[350654269,1738033833182,-500.0,0.00018451,2]
[350654271,1738033833191,-500.0,0.00018451,2]
[350654273,1738033833201,-508.81562759,0.00018451,2]
[350654275,1738033833211,-510.70146769,0.00018452,2]
[350654277,1738033833220,-500.0,0.00018452,2]
[350654279,1738033833230,-336.15951793,0.00018452,2]
[350654281,1738033833239,-500.0,0.00018452,2]
[350654283,1738033833250,-500.0,0.00018452,2]
[350654285,1738033833260,-500.0,0.00018452,2]
[350654287,1738033833270,-500.0,0.00018452,2]
[350654289,1738033833281,-500.0,0.00018452,2]
[350654291,1738033833291,-595.91488205,0.00018452,2]
[350654293,1738033833301,-500.0,0.00018452,2]
[350654295,1738033833310,-500.0,0.00018452,2]
[350654297,1738033833320,-500.0,0.00018452,2]
[350654299,1738033833330,-500.0,0.00018452,2]
[350654301,1738033833340,-500.0,0.00018452,2]
[350654303,1738033833350,-522.74854451,0.00018452,2]
[350654305,1738033833360,-500.0,0.00018452,2]
[350654307,1738033833369,-500.0,0.00018452,2]
[350654309,1738033833379,-500.0,0.00018452,2]
[350654311,1738033833389,-500.0,0.00018452,2]
[350654314,1738033833404,-506.04640431,0.00018452,2]
[350654317,1738033833420,-500.0,0.00018452,2]
[350654319,1738033833430,-500.0,0.00018452,2]
[350654321,1738033833442,-500.0,0.00018452,2]
[350654323,1738033833454,-370.14361121,0.00018452,2]
[350654325,1738033833464,-500.0,0.00018452,2]
[350654327,1738033833475,-503.62268451,0.00018452,2]
[350654329,1738033833486,-502.93913952,0.00018452,2]
[350654331,1738033833496,-500.0,0.00018452,2]
[350654333,1738033833507,-504.56055241,0.00018452,2]
[350654335,1738033833517,-1926.85,0.00018452,2]
[350654337,1738033833530,-500.0,0.00018452,2]
[350654338,1738033833540,-500.0,0.00018452,2]
[350654339,1738033833550,-597.48,0.00018452,2]
[350654340,1738033833560,-1820.5146361,0.00018453,2]
[350654341,1738033833571,-24900.0,0.00018453,2]
[350654342,1738033833581,-205.7417123,0.00018471,2]
[350654343,1738033833592,-152.0,0.00018516,2]
[350654344,1738033833602,-500.0,0.00018588,2]
[350654345,1738033833611,-500.0,0.00018588,2]
[350654346,1738033833621,-500.0,0.00018588,2]
[350654347,1738033833632,-500.0,0.00018588,2]
[350654349,1738033833641,-500.0,0.00018588,2]
[350654351,1738033833651,-500.0,0.00018588,2]
[350654353,1738033833661,-500.0,0.00018588,2]
[350654355,1738033833671,-500.0,0.00018588,2]
[350654357,1738033833680,-500.0,0.00018588,2]
[350654359,1738033833692,-500.0,0.00018588,2]
[350654361,1738033833702,-500.0,0.00018589,2]
[350654363,1738033833712,-500.0,0.00018589,2]
[350654365,1738033833722,-500.0,0.00018589,2]
[350654367,1738033833732,-500.0,0.00018589,2]
[350654369,1738033833742,-500.0,0.00018589,2]
[350654371,1738033833754,-500.0,0.00018589,2]
[350654373,1738033833764,-500.0,0.00018589,2]
[350654375,1738033833773,-500.0,0.00018589,2]
[350654378,1738033833783,-513.06191126,0.00018589,2]
[350654380,1738033833792,-500.0,0.00018589,2]
[350654382,1738033833803,-512.99763249,0.00018589,2]
[350654384,1738033833813,-513.44123764,0.00018589,2]
[350654386,1738033833823,-500.0,0.00018589,2]
[350654388,1738033833832,-500.0,0.00018589,2]
[350654390,1738033833843,-1926.85,0.00018589,2]
[350654392,1738033833852,-500.0,0.00018589,2]
[350654394,1738033833861,-597.48,0.00018589,2]
[350654396,1738033833871,-500.0,0.00018725,2]
[350654398,1738033833881,-500.0,0.00018725,2]
[350654400,1738033833891,-500.0,0.00018725,2]
[350654402,1738033833900,-500.0,0.00018725,2]
[350654404,1738033833910,-500.0,0.00018725,2]
[350654406,1738033833920,-500.0,0.00018725,2]
[350654408,1738033833931,-500.0,0.00018725,2]
[350654410,1738033833940,-500.0,0.00018725,2]
[350654412,1738033833950,-154.48,0.00018726,2]
[350654414,1738033833960,-280.71080688,0.00018726,2]
[350654416,1738033833970,-500.0,0.00018726,2]
[350654418,1738033833980,-500.0,0.00018726,2]
[350654420,1738033833991,-500.0,0.00018726,2]
[350654423,1738033834000,-500.0,0.00018726,2]
[350654425,1738033834010,-500.0,0.00018726,2]
[350654427,1738033834021,-1926.85,0.00018726,2]
[350654429,1738033834032,-500.0,0.00018726,2]
[350654431,1738033834042,-597.48,0.00018726,2]
[350654433,1738033834052,-333.43,0.00018862,2]
[350654435,1738033834063,-500.0,0.00018862,2]
[350654437,1738033834072,-500.0,0.00018862,2]
[350654439,1738033834082,-500.0,0.00018862,2]
[350654440,1738033834092,-515.09,0.00018862,2]
[350654442,1738033834102,-303.78,0.00018863,2]
[350654444,1738033834112,-500.0,0.00018863,2]
[350654446,1738033834122,-189.46712246,0.00018863,2]
[350654447,1738033834132,-500.0,0.00018863,2]
[350654448,1738033834142,-1926.85,0.00018863,2]
[350654449,1738033834151,-597.48,0.00018863,2]
[350654450,1738033834161,-500.0,0.00018919,2]
[350654451,1738033834171,-500.0,0.00018999,2]
[350654452,1738033834181,-500.0,0.00018999,2]
[350654453,1738033834191,-500.0,0.00018999,2]
[350654454,1738033834201,-500.0,0.00019,2]
[350654455,1738033834211,-1926.85,0.00019,2]
[350654456,1738033834222,-597.48,0.00019,2]
[350654457,1738033834232,-500.0,0.00019136,2]
[350654458,1738033834241,-500.0,0.00019136,2]
[350654459,1738033834251,-500.0,0.00019136,2]
[350654460,1738033834261,-500.0,0.00019137,2]
[350654461,1738033834270,-1926.85,0.00019137,2]
[350654462,1738033834280,-597.48,0.00019137,2]
[350654463,1738033834289,-500.0,0.00019273,2]
[350654464,1738033834299,-500.0,0.00019273,2]
[350654465,1738033834309,-500.0,0.00019273,2]
[350654466,1738033834319,-500.0,0.00019274,2]
[350654467,1738033834329,-1926.85,0.00019274,2]
[350654468,1738033834338,-597.48,0.00019274,2]
[350654469,1738033834347,-191.71173116,0.00019343,2]
[350654470,1738033834357,-197.09762083,0.00019343,2]
[350654471,1738033834366,-266.25293493,0.0001941,2]
[350654472,1738033834375,-500.0,0.0001941,2]
[350654473,1738033834385,-500.0,0.0001941,2]
[350654474,1738033834394,-1926.85,0.00019411,2]
[350654475,1738033834403,-597.48,0.00019411,2]
[350654476,1738033834412,-331.92,0.00019431,3]
[350654477,1738033834422,-165.96,0.00019431,3]
[350654478,1738033834432,-497.92,0.00019431,3]
[350654479,1738033834445,-500.0,0.00019439,2]
[350654480,1738033834455,-280.08057862,0.00019439,2]
[350654481,1738033834464,-500.0,0.00019439,2]
[350654482,1738033834473,-290.83209516,0.00019439,2]
[350654483,1738033834483,-17307.79149541,0.0001944,5]
[350654484,1738033834492,-2211.48620299,0.0001944,5]
[350654485,1738033834501,-153.002688,0.0001944,2]
[350654486,1738033834510,-500.0,0.0001944,2]
[350654487,1738033834523,-738.52747,0.0001944,2]
[350654488,1738033834532,-738.52747,0.0001944,2]
[350654489,1738033834541,-738.52747,0.0001944,2]
[350654490,1738033834551,-738.52747,0.0001944,2]
[350654491,1738033834560,-835.978687,0.0001944,2]
[350654492,1738033834569,-835.978687,0.0001944,2]
[350654493,1738033834578,-835.978687,0.0001944,2]
[350654494,1738033834588,-835.978687,0.0001944,2]
[350654495,1738033834597,-151.0,0.0001944,2]
[350654496,1738033834606,-151.0,0.0001944,2]
[350654497,1738033834615,-151.0,0.0001944,2]
[350654498,1738033834624,-265.567482,0.0001944,2]
[350654499,1738033834633,-151.0,0.0001944,2]
[350654500,1738033834642,-151.0,0.0001944,2]
[350654501,1738033834651,-151.0,0.0001944,2]
[350654502,1738033834661,-151.0,0.0001944,2]
[350654503,1738033834670,-151.0,0.0001944,2]
[350654504,1738033834679,-152.12214,0.0001944,2]
[350654505,1738033834688,-151.0,0.0001944,2]
[350654506,1738033834698,-151.0,0.0001944,2]
[350654507,1738033834707,-151.0,0.0001944,2]
[350654508,1738033834717,-151.0,0.0001944,2]
[350654509,1738033834726,-151.0,0.0001944,2]
[350654510,1738033834736,-505.23585215,0.00019442,2]
[350654511,1738033834745,-506.66220223,0.00019442,2]
[350654512,1738033834755,-506.2594217,0.00019442,2]
[350654513,1738033834764,-500.0,0.00019442,2]
[350654514,1738033834774,-500.0,0.00019442,2]
[350654515,1738033834783,-500.0,0.00019442,2]
[350654516,1738033834792,-500.0,0.00019442,2]
[350654517,1738033834802,-500.0,0.00019442,2]
[350654518,1738033834812,-500.0,0.00019442,2]
[350654519,1738033834822,-500.0,0.00019442,2]
[350654520,1738033834831,-500.0,0.00019442,2]
[350654521,1738033834841,-500.0,0.00019442,2]
[350654522,1738033834850,-500.0,0.00019442,2]
[350654523,1738033834860,-500.0,0.00019442,2]
[350654524,1738033834870,-500.0,0.00019442,2]
[350654525,1738033834879,-500.0,0.00019442,2]
[350654526,1738033834889,-513.23855735,0.00019442,2]
[350654527,1738033834899,-500.0,0.00019442,2]
[350654528,1738033834908,-500.0,0.00019442,2]
[350654529,1738033834918,-585.6217752,0.00019442,2]
[350654530,1738033834928,-508.24229093,0.00019442,2]
[350654531,1738033834938,-500.0,0.00019442,2]
[350654532,1738033834948,-514.24709964,0.00019442,2]
[350654533,1738033834958,-505.68955356,0.00019442,2]
[350654534,1738033834967,-500.0,0.00019442,7]
[350654535,1738033834978,-505.59551657,0.00019442,2]
[350654536,1738033834987,-200.63698017,0.00019442,2]
[350654537,1738033834997,-630.23294525,0.00019442,2]
[350654538,1738033835007,-500.0,0.00019442,2]
[350654539,1738033835016,-500.0,0.00019442,2]
[350654540,1738033835026,-299.54820353,0.00019442,2]
[350654541,1738033835035,-151.0,0.00019442,2]
[350654542,1738033835044,-151.0,0.00019442,2]
[350654543,1738033835053,-151.0,0.00019442,2]
[350654544,1738033835063,-500.0,0.00019442,2]
[350654545,1738033835072,-500.0,0.00019442,2]
[350654546,1738033835081,-151.0,0.00019442,2]
[350654547,1738033835090,-500.0,0.00019442,2]
[350654548,1738033835100,-201.840173,0.00019442,2]
[350654549,1738033835109,-151.0,0.00019442,2]
[350654550,1738033835118,-153.581151,0.00019442,2]
[350654551,1738033835128,-500.0,0.00019442,2]
[350654552,1738033835137,-151.0,0.00019442,2]
[350654553,1738033835147,-305.53560276,0.00019442,2]
[350654554,1738033835156,-500.0,0.00019442,2]
[350654555,1738033835166,-500.0,0.00019442,2]
[350654556,1738033835175,-500.0,0.00019442,2]
[350654557,1738033835185,-500.0,0.00019442,2]
[350654558,1738033835194,-509.064586,0.00019442,2]
[350654559,1738033835203,-507.4477077,0.00019442,2]
[350654560,1738033835212,-538.39695928,0.00019442,2]
[350654561,1738033835221,-151.0,0.00019442,2]
[350654562,1738033835231,-563.74914916,0.00019442,2]
[350654563,1738033835240,-151.0,0.00019442,2]
[350654564,1738033835251,-296.5328525,0.00019443,2]
[350654565,1738033835260,-203.969,0.00019443,2]
[350654566,1738033835270,-500.0,0.00019443,2]
[350654567,1738033835279,-500.0,0.00019444,2]
[350654568,1738033835289,-500.0,0.00019473,2]
[350654569,1738033835298,-500.0,0.00019547,2]
[350654570,1738033835308,-500.0,0.00019547,2]
[350654571,1738033835317,-1926.85,0.00019548,2]
[350654572,1738033835327,-597.48,0.00019548,2]
[350654573,1738033835337,-500.0,0.00019579,2]
[350654574,1738033835346,-500.0,0.00019579,2]
[350654575,1738033835356,-508.02380568,0.00019579,2]
[350654576,1738033835366,-500.0,0.00019579,2]
[350654577,1738033835375,-500.0,0.00019579,2]
[350654578,1738033835385,-500.0,0.00019579,2]